bitfinex/quotes_ETHUSD_20250214
["timestamp","ask_amount","ask_price","bid_price","bid_amount"]
[1739525753431,3.68937,2710.5,2710.2,0.12951473]
[1739525753594,3.68949,2710.4,2710.2,0.12951473]
[1739525754416,3.68937,2710.5,2710.2,0.12951473]
[1739525755086,3.68949,2710.4,2710.2,0.12951473]
[1739525756029,3.68962,2710.3,2710.2,0.12951473]
[1739525757233,4.45722,2710.3,2710.2,0.12951473]
[1739525757900,7.37888,2710.5,2710.2,0.12951473]
[1739525758136,3.68951,2710.4,2710.2,0.12951473]
[1739525758296,4.45703,2710.5,2710.2,0.12951473]
[1739525758504,3.6895,2710.4,2710.2,0.12951473]
[1739525758719,4.45697,2710.5,2710.2,0.12951473]
[1739525759332,0.7676,2710.5,2710.2,0.12951473]
[1739525759541,4.45699,2710.5,2710.2,0.12951473]
[1739525760022,3.68957,2710.4,2710.2,0.12951473]
[1739525760647,0.7676,2710.5,2710.2,0.12951473]
[1739525760648,0.7676,2710.5,2710.2,3.81918473]
[1739525760815,0.7676,2710.5,2710.2,0.12951473]
[1739525761020,3.87364838,2710.7,2710.2,4.6445338]
[1739525761237,7.56285838,2710.7,2710.2,4.6445338]
[1739525761496,0.18446838,2710.7,2710.2,4.6445338]
[1739525761703,3.68915,2710.7,2710.3,0.6491]
[1739525761998,3.68915,2710.7,2710.3,0.77898809]
[1739525763027,9.00623528,2711.2,2710.3,1.30850981]
[1739525763028,3.6886,2711.1,2710.3,1.30850981]
[1739525763219,3.68848,2711.2,2710.7,3.68907]
[1739525763409,4.45608,2711.2,2710.7,4.33817]
[1739525763615,0.7676,2711.2,2710.8,0.12939772]
[1739525763809,3.87199257,2711.4,2710.8,3.81826772]
[1739525764112,3.68841,2711.2,2710.9,0.12916729]
[1739525764321,3.68841,2711.2,2710.7,4.33812]
[1739525764475,3.68841,2711.2,2711.0,0.12906924]
[1739525764676,3.68841,2711.2,2710.7,0.6491]
[1739525764890,3.68841,2711.2,2710.8,0.12926534]
[1739525765109,3.68841,2711.2,2710.7,5.08555578]
[1739525765311,3.68841,2711.2,2710.9,0.12916729]
[1739525765523,3.68841,2711.2,2710.7,5.08555578]
[1739525765722,3.68841,2711.2,2711.0,0.12906924]
[1739525765997,3.87201257,2711.4,2710.8,3.68886]
[1739525766217,3.68833,2711.3,2711.1,0.1289712]
[1739525766410,3.87201257,2711.4,2710.7,0.6491]
[1739525766411,3.6884,2711.2,2710.7,0.6491]
[1739525766934,3.6884,2711.2,2710.7,4.33817]
[1739525767284,0.7676,2711.5,2710.8,1.55476019]
[1739525767490,3.68816,2711.4,2710.9,3.68872]
[1739525767690,3.68816,2711.4,2710.9,3.81781698]
[1739525769140,3.68828,2711.3,2710.9,0.12909698]
[1739525769322,3.68816,2711.4,2710.9,0.12909698]
[1739525769493,3.68834,2711.3,2710.9,0.99970168]
[1739525771198,3.68816,2711.4,2710.9,4.68842168]
[1739525771545,7.37637,2711.4,2710.9,0.99970168]
[1739525771721,3.68816,2711.4,2710.9,0.99970168]
[1739525772298,3.68835,2711.3,2710.9,0.12909698]
[1739525772744,3.68816,2711.4,2710.9,0.12909698]
[1739525773138,3.68841,2711.2,2710.9,0.12909698]
[1739525775275,0.7676,2711.5,2710.9,3.81789698]
[1739525775565,4.45565,2711.5,2711.0,4.33768]
[1739525775765,4.45565,2711.5,2711.0,4.46667893]
[1739525775973,7.55617598,2711.6,2711.0,4.46667893]
[1739525776156,0.18027598,2711.6,2711.0,0.77809893]
[1739525776554,3.68799,2711.5,2711.0,4.46672893]
[1739525776754,7.37608,2711.5,2711.0,0.77809893]
[1739525776964,3.68817,2711.4,2711.0,0.77809893]
[1739525777120,3.68799,2711.5,2711.0,0.77809893]
[1739525777675,0.18027598,2711.6,2711.0,0.77809893]
[1739525777859,7.3761,2711.5,2711.0,4.46666893]
[1739525778162,3.68823,2711.4,2711.0,0.77809893]
[1739525779428,7.37611,2711.5,2711.0,4.46675893]
[1739525779628,3.688,2711.5,2711.0,4.46675893]
[1739525779838,3.68813,2711.4,2711.0,4.46675893]
[1739525780044,7.37607,2711.5,2711.0,4.46675893]
[1739525780269,3.688,2711.5,2711.0,4.46675893]
[1739525780449,7.37608,2711.5,2711.0,4.46675893]
[1739525780646,3.688,2711.5,2711.0,4.46675893]
[1739525780991,3.68814,2711.4,2711.0,0.77809893]
[1739525781491,3.68814,2711.4,2711.0,4.46676893]
[1739525782888,3.68814,2711.4,2711.0,0.77809893]
[1739525783086,3.6882,2711.4,2711.0,0.77809893]
[1739525783389,0.7885,2711.3,2711.0,0.12899893]
[1739525783943,4.47687,2711.3,2711.0,0.12899893]
[1739525784063,3.68868,2711.0,2710.6,0.6491]
[1739525784412,0.7885,2710.9,2710.5,5.25]
[1739525784691,4.47734,2710.9,2710.5,5.25]
[1739525785058,4.47734,2710.9,2710.6,0.27432304]
[1739525786100,8.16627,2710.9,2710.6,0.27432304]
[1739525786299,3.689,2710.8,2710.6,0.27432304]
[1739525786719,4.47733,2710.9,2710.6,0.27432304]
[1739525786879,0.7885,2710.9,2710.6,0.27432304]
[1739525787278,0.7885,2710.9,2710.6,3.96345304]
[1739525787797,3.68862,2711.1,2710.6,3.68913]
[1739525788001,3.6887,2711.0,2710.5,3.68931]
[1739525788199,3.6887,2711.0,2710.5,4.19588982]
[1739525788670,4.47712,2711.1,2710.5,4.19588982]
[1739525788875,4.47712,2711.1,2710.6,3.68912]
[1739525789524,0.7885,2711.1,2710.8,3.68892]
[1739525789674,0.7885,2711.1,2710.6,3.68922]
[1739525789872,4.47707,2711.1,2710.6,4.54265198]
[1739525790274,0.7885,2711.1,2710.6,8.23179198]
[1739525790511,4.47705,2711.1,2710.7,0.27466402]
[1739525791318,3.68874,2711.0,2710.7,0.27466402]
[1739525791560,4.4771,2711.1,2710.7,0.27466402]
[1739525791860,3.68867,2711.0,2710.7,0.27466402]
[1739525792835,3.68867,2711.0,2710.6,0.27466402]
[1739525794767,3.68867,2711.0,2710.5,0.50657982]
[1739525794941,3.68884,2710.9,2710.5,0.50657982]
[1739525795134,3.68868,2711.0,2710.5,4.19588982]
[1739525797161,3.68868,2711.0,2710.5,4.19585982]
[1739525797374,3.68868,2711.0,2710.6,0.12948628]
[1739525798975,4.47704,2711.1,2710.6,3.81869628]
[1739525799504,3.68868,2711.0,2710.6,0.12948628]
[1739525800491,4.47704,2711.1,2710.6,0.12948628]
[1739525800788,4.47704,2711.1,2710.6,3.81863628]
[1739525800953,8.16565,2711.1,2710.6,3.81863628]
[1739525801491,4.47704,2711.1,2710.6,3.81863628]
[1739525801849,0.7885,2711.1,2710.6,3.81866628]
[1739525802090,0.7885,2711.1,2710.7,3.68897]
[1739525802499,4.47706,2711.1,2710.8,0.12932327]
[1739525802849,4.47706,2711.1,2710.6,4.13598663]
[1739525803204,4.47706,2711.1,2710.6,0.44677663]
[1739525803490,3.68873,2711.0,2710.7,0.12942133]
[1739525803913,4.47705,2711.1,2710.7,0.27475927]
[1739525804087,8.16569,2711.1,2710.8,0.12932327]
[1739525804291,4.47705,2711.1,2710.8,0.12932327]
[1739525804610,4.47705,2711.1,2710.9,0.12922521]
[1739525805205,4.47705,2711.1,2711.0,0.12912717]
[1739525805409,4.47705,2711.1,2710.6,3.68914]
[1739525805713,4.47705,2711.1,2711.0,0.12912717]
[1739525805869,4.47704,2711.1,2710.6,3.68914]
[1739525806058,4.47704,2711.1,2710.7,0.12942133]
[1739525808076,0.7885,2711.1,2710.7,3.81838133]
[1739525808284,0.7885,2711.1,2710.7,0.12942133]
[1739525808606,0.7885,2711.1,2710.7,3.81842133]
[1739525810775,0.7885,2711.1,2710.8,3.68894]
[1739525810977,0.7885,2711.1,2710.8,0.12932327]
[1739525811330,0.7885,2711.1,2710.7,3.68906]
[1739525811524,0.7885,2711.1,2710.9,0.12922521]
[1739525811916,0.7885,2711.1,2710.7,3.68906]
[1739525812117,0.7885,2711.1,2711.0,0.12912717]
[1739525812489,0.7885,2711.1,2710.7,3.68907]
[1739525812712,0.7885,2711.1,2711.0,0.12912717]
[1739525812912,0.7885,2711.1,2710.7,3.68907]
[1739525813078,0.7885,2711.1,2711.0,0.12912717]
[1739525813278,4.47705,2711.1,2711.0,0.12912717]
[1739525813531,4.47705,2711.1,2710.6,7.37825]
[1739525813832,0.7885,2711.1,2711.0,0.12912717]
[1739525814070,0.7885,2711.1,2710.8,3.68885]
[1739525814232,0.7885,2711.1,2711.0,0.12912717]
[1739525814386,0.7885,2711.1,2710.9,0.12922521]
[1739525814586,0.7885,2711.1,2710.7,3.96423025]
[1739525814822,0.7885,2711.1,2711.0,0.12912717]
[1739525815137,0.7617,2711.4,2710.8,0.6491]
[1739525815349,0.7617,2711.4,2711.1,3.68845]
[1739525815640,5.31778528,2711.5,2711.1,3.68845]
[1739525815939,4.62986598,2711.6,2711.2,0.12893109]
[1739525816235,4.44923,2711.9,2711.2,0.77803109]
[1739525816536,4.44923,2711.9,2711.3,3.68826]
[1739525816743,8.13681,2711.9,2711.3,3.81690278]
[1739525816900,4.44923,2711.9,2711.4,3.68805]
[1739525817078,0.7617,2711.9,2711.3,0.12864278]
[1739525817447,0.7617,2711.9,2711.5,3.68792]
[1739525817619,0.7617,2711.9,2711.6,3.68785]
[1739525817964,19.999,2712.0,2711.6,0.77734122]
[1739525818549,19.949,2712.0,2711.6,4.46518122]
[1739525819205,19.949,2712.0,2711.6,0.77734122]
[1739525819404,23.63642,2712.0,2711.6,0.6491]
[1739525819659,23.63642,2712.0,2711.7,0.12814322]
[1739525819966,23.63642,2712.0,2711.7,0.74814385]
[1739525820147,19.949,2712.0,2711.7,0.74814385]
[1739525820344,19.949,2712.0,2711.8,0.12804523]
[1739525820669,19.949,2712.0,2711.7,4.43585385]
[1739525820825,19.949,2712.0,2711.7,0.74814385]
[1739525821030,23.63632,2712.0,2711.8,0.12804523]
[1739525821248,19.949,2712.0,2711.8,0.12804523]
[1739525821939,19.949,2712.0,2711.6,0.6491]
[1739525822272,19.949,2712.0,2711.9,0.12794725]
[1739525822430,19.949,2712.0,2711.6,0.6491]
[1739525822630,19.949,2712.0,2711.9,0.12794725]
[1739525822831,23.63637,2712.0,2711.6,0.6491]
[1739525823134,23.63637,2712.0,2711.7,0.12814322]
[1739525823878,23.63637,2712.0,2711.5,3.6879]
[1739525824076,23.63637,2712.0,2711.8,0.12804523]
[1739525824290,23.63637,2712.0,2711.5,4.56415533]
[1739525824736,23.63637,2712.0,2711.6,0.12824122]
[1739525825150,19.949,2712.0,2711.6,3.81601122]
[1739525825391,19.949,2712.0,2711.7,3.68772]
[1739525825612,19.949,2712.0,2711.7,3.81586322]
[1739525826107,19.949,2712.0,2711.9,3.68745]
[1739525826444,19.949,2712.0,2711.9,3.81527734]
[1739525827669,19.949,2712.0,2711.9,5.01437734]
[1739525828584,19.949,2712.0,2711.9,8.01437734]
[1739525831363,19.949,2712.0,2711.9,8.27837734]
[1739525831562,19.949,2712.0,2711.9,9.55877286]
[1739525832062,19.949,2712.0,2711.9,10.30876731]
[1739525833662,19.949,2712.0,2711.9,15.55876731]
[1739525835543,19.949,2712.0,2711.9,15.29476731]
[1739525835744,19.949,2712.0,2711.9,10.40821731]
[1739525835986,20.6992,2712.0,2711.9,5.37782734]
[1739525837094,20.6992,2712.0,2711.9,0.12782734]
[1739525837297,19.949,2712.0,2711.9,0.12782734]
[1739525837493,19.949,2712.0,2711.7,3.68763]
[1739525837709,19.949,2712.0,2711.9,3.81447949]
[1739525837915,19.949,2712.0,2711.9,3.68745]
[1739525838139,19.949,2712.0,2711.9,3.81447949]
[1739525838565,19.949,2712.0,2711.9,0.12702949]
[1739525838993,0.7832,2711.9,2711.5,3.68791]
[1739525839202,4.47065,2711.9,2711.3,9.20114]
[1739525839505,4.47065,2711.9,2711.4,0.74621962]
[1739525839680,0.7832,2711.7,2711.2,3.68829]
[1739525840206,0.7832,2711.7,2711.3,3.68824]
[1739525840785,0.7832,2711.7,2711.2,3.0]
[1739525841025,0.7832,2711.7,2711.4,3.68809]
[1739525841822,0.7832,2711.7,2711.2,3.75373767]
[1739525841996,4.47093,2711.7,2711.2,8.21255644]
[1739525842409,4.47093,2711.7,2711.3,0.12768362]
[1739525842609,4.47093,2711.7,2711.2,8.21255644]
[1739525842815,4.47093,2711.7,2711.4,0.1275856]
[1739525843019,4.47093,2711.7,2711.2,8.21255644]
[1739525843222,4.47093,2711.7,2711.5,0.12748759]
[1739525843384,3.68785,2711.6,2711.5,0.12748759]
[1739525843725,3.68785,2711.6,2711.1,3.0]
[1739525843899,3.68785,2711.6,2711.5,0.12748759]
[1739525844097,3.68785,2711.6,2711.1,3.68851]
[1739525844297,3.68785,2711.6,2711.5,0.12748759]
[1739525844499,3.68785,2711.6,2711.1,3.68851]
[1739525844708,3.68785,2711.6,2711.5,0.12748759]
[1739525844908,3.68785,2711.6,2711.1,3.68851]
[1739525845084,0.7832,2711.7,2711.5,0.12748759]
[1739525845290,0.7832,2711.7,2711.3,3.68825]
[1739525845537,0.7832,2711.7,2711.6,0.12738958]
[1739525845690,4.47092,2711.7,2711.1,4.4451509]
[1739525845884,4.47092,2711.7,2711.6,0.12738958]
[1739525846085,4.47092,2711.7,2711.1,4.4451509]
[1739525846380,0.7832,2711.7,2711.2,0.12778164]
[1739525846928,4.47099,2711.7,2711.2,3.81604164]
[1739525847618,4.47095,2711.7,2711.2,3.81604164]
[1739525847804,0.7832,2711.7,2711.2,4.94217489]
[1739525848023,4.47101,2711.7,2711.2,4.94217489]
[1739525848402,4.47101,2711.7,2711.2,1.25391489]
[1739525848718,4.471,2711.7,2711.2,1.25391489]
[1739525849257,0.7832,2711.7,2711.2,4.94229489]
[1739525849543,3.68794,2711.6,2711.3,0.56989858]
[1739525849732,3.68807,2711.5,2711.2,1.25391489]
[1739525849947,3.68807,2711.5,2711.4,0.12787906]
[1739525850126,3.68807,2711.5,2711.3,0.12797708]
[1739525850445,3.68807,2711.5,2711.4,0.12787906]
[1739525850607,3.68807,2711.5,2711.2,1.12613325]
[1739525850806,3.68807,2711.5,2711.4,0.12787906]
[1739525851047,3.68807,2711.5,2711.2,1.12613325]
[1739525851258,3.68807,2711.5,2711.4,0.12787906]
[1739525851547,3.68794,2711.6,2711.2,1.12613325]
[1739525851702,3.68802,2711.5,2711.4,0.12787906]
[1739525851902,3.68802,2711.5,2711.3,0.12797708]
[1739525852103,3.68802,2711.5,2711.4,0.12787906]
[1739525852503,3.68802,2711.5,2711.2,1.12613325]
[1739525852731,3.68802,2711.5,2711.4,0.12787906]
[1739525853207,3.68802,2711.5,2711.2,1.12613325]
[1739525853548,3.68802,2711.5,2711.4,0.12787906]
[1739525853708,3.68802,2711.5,2711.3,0.12797708]
[1739525854006,3.68802,2711.5,2711.4,0.12787906]
[1739525854205,3.6884,2711.2,2710.9,5.8991]
[1739525854430,0.7923,2711.1,2710.9,5.25]
[1739525854607,0.7923,2711.1,2710.7,3.68904]
[1739525854815,4.48088,2711.1,2710.7,0.750144]
[1739525855219,0.7923,2711.1,2710.7,0.750144]
[1739525855421,4.48087,2711.1,2710.8,0.4399244]
[1739525856265,0.7923,2711.1,2710.8,0.4399244]
[1739525856440,4.48085,2711.1,2710.8,0.4399244]
[1739525857379,4.48085,2711.1,2710.9,0.12836923]
[1739525857879,3.68867,2711.0,2710.9,0.12836923]
[1739525858249,3.68867,2711.0,2710.7,0.750144]
[1739525858448,3.68867,2711.0,2710.9,0.12836923]
[1739525858662,3.68867,2711.0,2710.7,1.5589994]
[1739525858867,3.68867,2711.0,2710.9,0.12836923]
[1739525859081,3.68867,2711.0,2710.7,1.5589994]
[1739525859321,3.68867,2711.0,2710.9,0.12836923]
[1739525859582,0.7923,2711.1,2710.8,0.12846728]
[1739525859876,4.48087,2711.1,2710.9,0.12836923]
[1739525860390,4.48087,2711.1,2710.7,0.750144]
[1739525860543,4.48087,2711.1,2711.0,0.12827118]
[1739525860879,4.48087,2711.1,2710.7,0.750144]
[1739525861084,4.48087,2711.1,2711.0,0.12827118]
[1739525861382,4.48087,2711.1,2710.7,0.750144]
[1739525861674,4.48087,2711.1,2711.0,0.12827118]
[1739525861833,4.48087,2711.1,2710.7,0.750144]
[1739525862033,4.48087,2711.1,2711.0,0.12827118]
[1739525862281,4.48087,2711.1,2710.7,0.750144]
[1739525862477,4.48087,2711.1,2711.0,0.12827118]
[1739525862676,4.48087,2711.1,2710.7,0.750144]
[1739525862852,4.48085,2711.1,2711.0,0.12827118]
[1739525863034,4.48085,2711.1,2710.7,0.750144]
[1739525863236,4.48085,2711.1,2711.0,0.12827118]
[1739525863477,0.7923,2711.1,2710.7,4.439224]
[1739525863681,0.7923,2711.1,2711.0,0.12827118]
[1739525863981,0.7923,2711.1,2710.7,0.750144]
[1739525864155,0.7923,2711.1,2711.0,0.12827118]
[1739525864683,4.48085,2711.1,2711.0,0.12844486]
[1739525864853,0.7923,2711.1,2710.7,4.439204]
[1739525865054,4.48085,2711.1,2711.0,0.12844486]
[1739525865254,4.48085,2711.1,2710.7,0.750144]
[1739525865486,4.48085,2711.1,2711.0,0.12844486]
[1739525865650,4.48085,2711.1,2710.7,0.750144]
[1739525865854,4.48085,2711.1,2711.0,0.12844486]
[1739525866054,4.48085,2711.1,2710.7,0.750144]
[1739525866256,4.48085,2711.1,2711.0,0.12844486]
[1739525866457,4.48085,2711.1,2710.7,0.750144]
[1739525866656,4.48085,2711.1,2711.0,0.12844486]
[1739525866843,0.7923,2711.1,2710.7,0.750144]
[1739525867044,0.7923,2711.1,2711.0,0.12844486]
[1739525867373,4.48085,2711.1,2710.7,0.750144]
[1739525867559,4.48085,2711.1,2711.0,0.12844486]
[1739525867758,4.48085,2711.1,2710.7,0.750144]
[1739525867959,4.48085,2711.1,2711.0,0.12844486]
[1739525868161,0.7923,2711.1,2710.7,4.439164]
[1739525868366,0.7923,2711.1,2710.7,4.9479904]
[1739525868658,0.7923,2711.1,2710.8,0.12864096]
[1739525868856,0.7923,2711.1,2710.7,4.9479904]
[1739525869062,0.7923,2711.1,2710.9,0.12854291]
[1739525869275,0.7923,2711.1,2710.7,4.9479904]
[1739525869462,0.7923,2711.1,2711.0,0.12844486]
[1739525869658,0.7923,2711.1,2710.7,4.9480204]
[1739525869988,0.7923,2711.1,2711.0,0.12844486]
[1739525870188,0.7923,2711.1,2710.9,3.6888]
[1739525870485,0.8182,2711.3,2711.0,0.12844486]
[1739525870789,4.50647,2711.3,2711.0,0.12844486]
[1739525870948,0.8182,2711.3,2711.0,0.12844486]
[1739525871288,4.50657,2711.3,2711.0,0.12844486]
[1739525871490,4.50657,2711.3,2710.8,5.58739116]
[1739525871677,0.8182,2711.3,2711.1,0.12834682]
[1739525871871,0.8182,2711.3,2710.9,3.6888]
[1739525872078,0.8182,2711.3,2711.2,0.12824879]
[1739525872263,0.8182,2711.3,2710.8,1.21703556]
[1739525872465,0.8182,2711.3,2710.9,3.68878]
[1739525872659,0.8182,2711.3,2710.9,3.81732291]
[1739525872858,0.8182,2711.3,2711.0,3.68858]
[1739525873084,0.8182,2711.3,2711.0,3.81702486]
[1739525873590,0.8182,2711.3,2711.1,3.68848]
[1739525873755,9.00572528,2711.6,2711.1,3.68848]
[1739525874094,0.8182,2711.7,2711.5,3.68792]
[1739525874628,0.8182,2711.7,2711.6,0.12819983]
[1739525874784,20.7672,2712.0,2711.6,0.12819983]
[1739525875525,20.7672,2712.0,2711.6,3.81595983]
[1739525875827,20.7672,2712.0,2711.6,0.12819983]
[1739525876028,20.7672,2712.0,2711.6,3.81604983]
[1739525876192,20.7672,2712.0,2711.6,0.12819983]
[1739525877330,20.7672,2712.0,2711.6,3.81603983]
[1739525878231,24.45456,2712.0,2711.6,0.12819983]
[1739525878442,20.7672,2712.0,2711.6,3.81604983]
[1739525878628,20.7672,2712.0,2711.6,0.12819983]
[1739525879535,24.45451,2712.0,2711.6,0.12819983]
[1739525879729,20.7672,2712.0,2711.6,0.12819983]
[1739525879897,24.45454,2712.0,2711.6,0.12819983]
[1739525880536,20.7672,2712.0,2711.6,0.12819983]
[1739525881037,20.7672,2712.0,2711.6,3.81604983]
[1739525881949,24.45453,2712.0,2711.6,0.12819983]
[1739525882752,20.7672,2712.0,2711.6,3.81604983]
[1739525883047,20.7672,2712.0,2711.7,3.68767]
[1739525883245,20.7672,2712.0,2711.6,0.12819983]
[1739525883447,20.7672,2712.0,2711.7,0.12804394]
[1739525883612,20.7672,2712.0,2711.7,3.81569394]
[1739525884249,19.949,2712.0,2711.7,3.81569394]
[1739525884903,19.949,2712.0,2711.7,0.12804394]
[1739525885470,19.949,2712.0,2711.7,0.57455633]
[1739525885664,19.949,2712.0,2711.9,3.68745]
[1739525885832,19.949,2712.0,2711.9,4.33655]
[1739525886163,19.949,2712.0,2711.9,4.46396385]
[1739525886462,19.949,2712.0,2711.9,5.01396385]
[1739525886666,19.949,2712.0,2711.9,5.35672994]
[1739525886906,19.949,2712.0,2711.9,6.50443988]
[1739525887268,19.949,2712.0,2711.9,9.50443988]
[1739525888060,10.7307,2712.0,2711.9,14.76193988]
[1739525889063,1.5124,2712.0,2711.9,14.76193988]
[1739525889268,5.31778528,2713.4,2713.0,3.68593]
[1739525889473,0.8081,2713.5,2713.1,3.68574]
[1739525889635,0.8081,2713.5,2713.1,0.55]
[1739525889979,0.8081,2713.7,2713.3,3.68543]
[1739525890464,0.8081,2713.7,2713.4,0.12552765]
[1739525891525,0.8081,2713.7,2713.2,4.33476]
[1739525891851,0.8081,2713.7,2713.5,0.12542978]
[1739525892026,0.8081,2713.9,2713.4,3.68539]
[1739525892428,0.8081,2713.9,2713.5,0.12542978]
[1739525893022,0.8081,2713.9,2713.6,3.68513]
[1739525893256,0.8081,2714.2,2713.6,3.81024718]
[1739525893454,0.8081,2714.2,2713.6,0.12511718]
[1739525893689,4.942413,2714.2,2713.6,0.12511718]
[1739525893888,1.258083,2714.2,2713.6,0.12511718]
[1739525894102,3.68459,2714.1,2713.6,0.12511718]
[1739525894299,3.68487,2713.8,2713.6,0.12511718]
[1739525894897,4.4931,2713.7,2713.6,0.12511718]
[1739525895060,4.4931,2713.7,2713.2,6.1621]
[1739525895361,7.37049,2713.6,2713.3,0.12528693]
[1739525895560,4.503079,2713.6,2713.3,0.12528693]
[1739525895759,4.49277,2714.0,2713.3,0.58685471]
[1739525895967,3.68483,2713.9,2713.5,0.55]
[1739525896499,4.49272,2714.0,2713.6,0.1241754]
[1739525897476,0.8081,2714.2,2713.7,0.55]
[1739525897677,0.8081,2714.2,2713.8,0.12401272]
[1739525897867,3.68473,2713.9,2713.8,0.04959329]
[1739525898181,4.37207954,2713.9,2713.8,0.12401272]
[1739525898384,3.68493,2713.8,2713.5,0.55]
[1739525898702,4.37207954,2713.9,2713.8,0.04192489]
[1739525898907,4.43993854,2713.9,2713.8,0.04192489]
[1739525903720,4.44743854,2713.9,2713.8,0.04192489]
[1739525903888,7.44743854,2713.9,2713.8,4.89e-06]
[1739525904087,9.88022796,2713.9,2713.8,4.89e-06]
[1739525905914,15.19801324,2713.9,2713.8,4.89e-06]
[1739525906120,17.10446869,2713.9,2713.8,4.89e-06]
[1739525907195,17.11196869,2713.9,2713.8,4.89e-06]
[1739525907827,17.11196869,2713.9,2712.4,0.6491]
[1739525907980,3.68657,2712.6,2712.4,0.6491]
[1739525908176,7.37268,2712.8,2712.5,0.16162885]
[1739525908382,3.68603,2713.0,2712.6,2.43278942]
[1739525908680,3.68586,2713.1,2712.7,0.8108235]
[1739525908882,3.68577,2713.2,2712.7,0.8108235]
[1739525909180,3.68554,2713.4,2712.9,1.1991]
[1739525909412,3.68554,2713.4,2713.0,0.49213408]
[1739525909607,3.68554,2713.4,2713.0,0.65355986]
[1739525909922,7.37108,2713.4,2713.1,0.03611677]
[1739525910080,3.68554,2713.4,2713.1,0.16123982]
[1739525910279,3.68529,2713.5,2713.1,0.16123982]
[1739525910492,3.68496,2713.8,2713.2,0.68521544]
[1739525910694,3.68496,2713.8,2713.2,6.96555044]
[1739525910923,3.68504,2713.7,2713.2,6.96555044]
[1739525911130,3.68518,2713.6,2713.2,3.27988044]
[1739525911286,3.68518,2713.6,2713.2,3.24302589]
[1739525911622,3.68496,2713.8,2713.2,4.49007723]
[1739525911797,3.68514,2713.6,2713.2,4.49007723]
[1739525912124,3.68514,2713.6,2713.2,4.45322432]
[1739525912345,0.18194127,2714.1,2713.3,0.58685289]
[1739525912621,3.68459,2714.0,2713.6,0.6491]
[1739525912925,3.68459,2714.0,2713.7,0.12444085]
[1739525914381,3.68436,2714.2,2713.8,0.55]
[1739525914781,3.68436,2714.2,2713.9,0.12424517]
[1739525914983,0.8048,2714.5,2713.9,0.12424517]
[1739525915227,7.36913,2714.1,2713.9,0.12424517]
[1739525915406,3.68459,2714.0,2713.9,0.12424517]
[1739525919827,3.68422,2714.3,2713.6,0.6491]
[1739525920012,7.36991,2713.8,2713.6,0.6491]
[1739525920217,3.68464,2714.0,2713.6,1.53728894]
[1739525920459,3.68487,2713.8,2713.6,1.53728894]
[1739525920659,3.68464,2714.0,2713.7,0.55]
[1739525920961,3.68486,2713.8,2713.7,0.55]
[1739525921145,3.685,2713.7,2713.6,0.6491]
[1739525922430,3.685,2713.7,2713.4,5.25]
[1739525922633,3.68527,2713.5,2713.4,6.4491]
[1739525922956,3.68527,2713.5,2713.4,1.1991]
[1739525923323,3.6851,2713.7,2713.4,0.55]
[1739525923729,7.37022,2713.7,2713.4,0.55]
[1739525924044,3.6851,2713.7,2713.4,0.55]
[1739525925154,3.68522,2713.6,2713.4,0.55]
[1739525925366,3.68514,2713.6,2713.4,0.55]
[1739525925664,3.68509,2713.7,2713.4,0.55]
[1739525925866,7.37019,2713.7,2713.4,0.55]
[1739525926026,3.68509,2713.7,2713.4,0.55]
[1739525926226,3.68521,2713.6,2713.4,0.55]
[1739525926563,3.68527,2713.5,2713.4,0.55]
[1739525926876,3.68515,2713.6,2713.4,0.55]
[1739525927291,3.68527,2713.5,2713.4,0.55]
[1739525929552,3.68504,2713.7,2713.4,0.55]
[1739525929749,3.68521,2713.6,2713.4,0.55]
[1739525930467,3.68489,2713.8,2713.4,0.55]
[1739525930650,3.68508,2713.7,2713.4,0.55]
[1739525930881,3.68515,2713.6,2713.4,0.55]
[1739525932328,3.68496,2713.8,2713.4,0.55]
[1739525932329,3.68512,2713.7,2713.5,0.12426501]
[1739525932530,3.68512,2713.7,2713.6,0.6491]
[1739525932752,3.68512,2713.7,2713.6,0.77326715]
[1739525936006,3.68466,2714.0,2713.6,0.77326715]
[1739525936350,3.68474,2713.9,2713.6,0.77326715]
[1739525936635,3.68466,2714.0,2713.6,0.77326715]
[1739525936841,3.68488,2713.8,2713.6,0.77326715]
[1739525937140,3.68466,2714.0,2713.6,0.77326715]
[1739525937335,7.36938,2714.0,2713.6,0.77326715]
[1739525937537,3.68475,2713.9,2713.6,0.77326715]
[1739525939032,3.68475,2713.9,2713.6,1.52472246]
[1739525940150,3.68475,2713.9,2713.6,0.77326715]
[1739525940548,3.68466,2714.0,2713.6,0.77326715]
[1739525941219,3.68482,2713.9,2713.6,0.77326715]
[1739525941943,3.68466,2714.0,2713.6,0.77326715]
[1739525942161,3.68425,2714.3,2713.9,0.55]
[1739525942363,3.68425,2714.3,2714.0,0.6491]
[1739525942528,3.68425,2714.3,2714.0,0.77287578]
[1739525942860,3.68432,2714.3,2714.0,0.77287578]
[1739525943068,3.68405,2714.4,2714.0,0.77287578]
[1739525943251,3.68437,2714.2,2714.0,0.77287578]
[1739525943433,3.68419,2714.3,2714.0,0.77287578]
[1739525944750,0.7862,2714.7,2714.0,0.77287578]
[1739525944953,3.68429,2714.3,2714.0,0.77287578]
[1739525945881,3.68427,2714.3,2714.0,0.77287578]
[1739525946166,3.68435,2714.2,2714.0,0.77287578]
[1739525947179,3.68446,2714.1,2714.0,0.77287578]
[1739525947537,3.68435,2714.2,2714.0,0.77287578]
[1739525948479,7.36876,2714.2,2714.0,0.77287578]
[1739525949282,3.68435,2714.2,2714.0,0.77287578]
[1739525949883,7.36875,2714.2,2714.0,0.77287578]
[1739525950277,3.68435,2714.2,2714.0,0.77287578]
[1739525952223,3.68419,2714.3,2714.0,0.77287578]
[1739525952422,3.68434,2714.2,2714.0,0.77287578]
[1739525952783,3.68446,2714.1,2714.0,0.77287578]
[1739525952985,3.68391,2714.5,2714.0,0.77287578]
[1739525953229,3.68434,2714.2,2714.0,0.77287578]
[1739525953523,3.6841,2714.4,2714.0,0.77287578]